bitfinex/quotes_ETHUSD_20260107
["timestamp","ask_amount","ask_price","bid_price","bid_amount"]
[1767752072774,0.94744782,3245.5,3244.6,1.02523959]
[1767752074664,0.94744782,3245.5,3244.7,0.002]
[1767752075057,0.94744782,3245.8,3244.8,1.02523959]
[1767752075253,0.94744782,3245.8,3245.0,1.02523959]
[1767752075467,3.08074737,3246.0,3245.2,0.06795472]
[1767752075674,0.86278799,3246.0,3245.2,1.02523959]
[1767752075985,0.001,3246.2,3245.4,0.06795472]
[1767752076289,0.001,3246.2,3245.4,1.02523959]
[1767752076497,3.08154216,3246.2,3245.4,1.02523959]
[1767752077170,0.94844782,3246.2,3245.4,1.02523959]
[1767752077986,0.94844782,3246.2,3245.2,0.09876946]
[1767752077987,0.001,3246.2,3245.2,1.02523959]
[1767752078206,3.242,3247.7,3245.7,1.02523959]
[1767752078207,0.94744782,3246.8,3245.7,1.02523959]
[1767752078506,0.94744782,3246.6,3245.8,0.06795472]
[1767752078659,0.94744782,3246.6,3245.7,0.95728487]
[1767752078995,4.02768807,3246.5,3245.7,0.95728487]
[1767752079287,0.94744782,3246.5,3245.7,1.02523959]
[1767752079590,0.94744782,3246.5,3245.7,4.10622414]
[1767752079888,0.94744782,3246.5,3245.7,4.9155411]
[1767752080381,3.08017425,3246.6,3245.9,0.06795472]
[1767752080988,7.10779632,3246.6,3245.7,0.06795472]
[1767752081178,4.02762207,3246.6,3245.7,4.10621548]
[1767752081485,0.94744782,3246.6,3245.7,4.10621548]
[1767752081684,0.94744782,3246.6,3245.7,4.60741359]
[1767752081685,4.02761798,3246.6,3245.7,4.60741359]
[1767752081983,0.94744782,3246.6,3245.9,0.06795472]
[1767752082283,3.08006158,3246.7,3245.8,0.95728487]
[1767752082692,4.0275094,3246.7,3245.8,0.95728487]
[1767752082987,0.94744782,3247.2,3245.8,0.06795472]
[1767752083292,0.94744782,3247.0,3245.8,0.53548917]
[1767752084298,0.94744782,3247.0,3245.8,0.46753445]
[1767752084480,0.94744782,3247.0,3245.6,0.807]
[1767752084681,0.94744782,3247.0,3245.7,0.95728487]
[1767752085374,0.94744782,3246.8,3245.7,0.95728487]
[1767752086561,9.23958237,3246.9,3245.4,0.95728487]
[1767752086562,0.94744782,3246.6,3245.4,0.95728487]
[1767752086767,0.94744782,3246.6,3245.3,0.06795472]
[1767752086968,0.94744782,3246.6,3245.4,3.08123208]
[1767752087167,0.94744782,3246.6,3245.5,0.06795472]
[1767752087390,0.94744782,3246.4,3245.5,0.06795472]
[1767752087703,0.94844782,3246.4,3245.6,0.03081094]
[1767752087872,0.94844782,3246.4,3245.5,0.32191415]
[1767752088923,7.35744782,3248.0,3246.3,0.06795472]
[1767752089067,0.94744782,3249.3,3248.3,0.06795472]
[1767752089400,6.30090382,3250.7,3248.3,0.06795472]
[1767752089401,6.1553613,3249.2,3248.3,0.807]
[1767752089693,6.1553613,3249.2,3248.1,0.06795472]
[1767752089694,0.94744782,3249.1,3248.1,0.87495472]
[1767752089894,0.94744782,3249.1,3248.2,0.06795472]
[1767752090082,0.94744782,3249.1,3248.4,0.06795472]
[1767752090283,1.34995259,3249.1,3248.0,0.06795472]
[1767752090486,0.94744782,3249.0,3247.8,0.06795472]
[1767752091086,0.94744782,3249.0,3247.8,3.14689441]
[1767752091286,0.94744782,3249.0,3247.6,0.06795472]
[1767752091486,0.40250477,3249.1,3247.8,0.06795472]
[1767752091487,0.94744782,3248.8,3247.8,0.06795472]
[1767752091687,0.94744782,3248.6,3247.8,0.06795472]
[1767752093384,0.94744782,3248.6,3247.6,0.06795472]
[1767752093579,0.94744782,3248.4,3247.6,0.06795472]
[1767752094488,0.94744782,3248.4,3247.4,0.06795472]
[1767752094683,0.94744782,3248.2,3247.4,0.06795472]
[1767752095609,3.07872294,3248.1,3247.4,0.06795472]
[1767752096312,1.65778557,3248.7,3247.4,0.06795472]
[1767752096492,4.02560777,3248.7,3247.6,0.06795472]
[1767752096888,0.94744782,3248.6,3247.7,0.806]
[1767752097586,0.94744782,3248.4,3247.6,0.806]
[1767752098489,0.94744782,3248.9,3247.8,0.95728487]
[1767752099381,0.94744782,3248.9,3247.8,0.806]
[1767752099606,4.73590324,3248.8,3247.8,3.88496398]
[1767752099810,0.94744782,3248.7,3247.7,1.02523959]
[1767752100511,0.94744782,3248.7,3247.9,0.002]
[1767752101080,0.94744782,3248.5,3247.0,0.01901029]
[1767752101484,0.807,3248.6,3247.0,0.01901029]
[1767752101485,0.900766,3248.3,3247.0,0.01901029]
[1767752101700,0.900766,3248.1,3247.0,0.01901029]
[1767752102009,0.900766,3247.9,3246.4,1.78719149]
[1767752102207,0.900766,3247.9,3246.4,4.86750146]
[1767752102380,0.900766,3247.9,3246.1,1.04914621]
[1767752102581,0.900766,3247.7,3246.1,0.06795472]
[1767752102801,0.900766,3247.7,3245.9,0.06795472]
[1767752102802,0.900766,3247.7,3246.2,0.806]
[1767752103283,0.900766,3247.7,3245.9,0.806]
[1767752103511,0.1707766,3247.8,3246.0,0.03080714]
[1767752103512,0.900766,3247.5,3246.0,0.03080714]
[1767752103713,0.900766,3247.3,3245.9,0.806]
[1767752103889,0.900766,3247.3,3245.6,3.08102907]
[1767752104088,0.900766,3247.3,3245.7,0.87395472]
[1767752104802,0.900766,3247.3,3245.7,3.95489904]
[1767752105002,0.93157989,3247.1,3245.8,0.806]
[1767752105387,0.93157989,3247.1,3245.8,3.88690112]
[1767752105794,0.93157989,3246.9,3245.8,0.806]
[1767752106006,0.93157989,3246.9,3245.8,3.88686228]
[1767752106588,3.07938658,3247.4,3246.3,0.06795472]
[1767752106800,0.38863109,3247.3,3246.5,0.06795472]
[1767752107001,0.93157989,3247.8,3246.7,0.06795472]
[1767752107200,0.93157989,3248.2,3246.9,0.06795472]
[1767752107811,0.93157989,3248.1,3246.7,1.01941926]
[1767752108013,0.93157989,3248.1,3246.9,0.806]
[1767752108316,1.94832633,3248.0,3246.9,0.806]
[1767752109407,1.94832633,3248.0,3246.3,0.06795472]
[1767752109408,0.93157989,3247.9,3246.3,0.06795472]
[1767752109714,1.01674644,3248.0,3245.5,3.14911712]
[1767752109715,0.93157989,3247.5,3245.5,3.14911712]
[1767752110014,0.93157989,3247.5,3245.6,0.06795472]
[1767752111218,0.93157989,3247.5,3245.7,0.03080999]
[1767752111415,0.93157989,3247.3,3245.8,3.08090455]
[1767752111583,0.93157989,3247.1,3245.7,0.70670931]
[1767752111787,0.93157989,3247.1,3245.6,0.806]
[1767752111988,0.93157989,3247.1,3245.3,0.002]
[1767752112190,0.93157989,3247.1,3245.4,0.806]
[1767752112389,0.93157989,3247.1,3245.3,0.002]
[1767752112627,0.93157989,3247.1,3245.3,0.87595472]
[1767752112798,0.807,3247.2,3245.3,0.002]
[1767752112799,0.93157989,3246.9,3245.3,0.002]
[1767752113388,0.93157989,3246.7,3245.3,0.002]
[1767752113594,0.93157989,3246.5,3245.3,0.002]
[1767752113907,0.93157989,3246.5,3246.1,0.002]
[1767752114090,0.93157989,3246.5,3245.3,0.002]
[1767752114291,1.10543788,3246.4,3245.8,0.002]
[1767752115317,0.17385799,3246.4,3245.8,0.002]
[1767752115519,3.07986079,3246.9,3245.8,0.002]
[1767752115725,0.93157989,3246.8,3245.8,0.002]
[1767752117293,6.15972158,3246.9,3245.8,0.002]
[1767752117607,6.87377954,3246.9,3245.8,0.95346454]
[1767752118196,6.87377954,3246.9,3245.9,0.03080809]
[1767752118397,4.06065946,3247.0,3245.9,0.03080809]
[1767752118630,0.62560582,3247.7,3246.2,1.01941926]
[1767752118631,3.0793904,3247.4,3246.2,1.01941926]
[1767752118799,3.0793904,3247.4,3246.2,0.95146454]
[1767752119000,6.15886042,3247.4,3246.3,0.06795472]
[1767752119329,3.07932649,3247.5,3246.5,0.95146454]
[1767752119530,3.07923149,3247.6,3246.7,3.08005051]
[1767752120040,0.62560582,3247.7,3246.7,3.08005051]
[1767752120041,3.70473107,3247.7,3246.7,3.08005051]
[1767752120199,3.70473107,3247.7,3246.6,4.20743441]
[1767752120200,3.70473107,3247.7,3246.6,4.20738772]
[1767752120408,3.70473107,3247.7,3246.6,7.2875331]
[1767752120814,3.70473107,3247.7,3246.6,4.20738772]
[1767752121128,3.70473107,3247.7,3246.7,0.73555609]
[1767752121735,3.70473107,3247.7,3246.7,3.81554917]
[1767752122037,0.93157989,3247.6,3245.8,0.95346454]
[1767752122228,0.93157989,3247.6,3246.1,3.08061275]
[1767752122553,0.93157989,3247.6,3246.2,3.08049854]
[1767752123409,0.93157989,3247.6,3246.1,3.0805512]
[1767752123608,0.93157989,3247.3,3246.2,0.38875512]
[1767752123812,0.93157989,3247.1,3246.0,0.807]
[1767752124222,0.93157989,3247.1,3246.0,3.88771421]
[1767752125212,0.93157989,3247.1,3245.9,3.08077927]
[1767752125414,0.93157989,3247.1,3245.8,0.002]
[1767752125651,0.93157989,3246.9,3245.8,0.002]
[1767752125850,0.93157989,3246.7,3245.8,0.002]
[1767752127727,4.01172527,3246.6,3245.8,0.002]
[1767752129142,7.09187065,3246.6,3245.8,0.002]
[1767752129857,0.93157989,3246.5,3245.8,0.002]
[1767752130016,0.93157989,3246.5,3245.3,0.002]
[1767752130216,0.93157989,3246.3,3245.3,0.002]
[1767752132370,3.08052492,3246.2,3245.3,0.002]
[1767752132524,1.0979016,3246.4,3245.4,0.06795472]
[1767752132724,6.16053382,3246.5,3245.4,0.06795472]
[1767752133747,6.16053382,3246.5,3245.3,0.9485964]
[1767752134453,6.16053382,3246.5,3245.3,4.02988514]
[1767752136850,3.08026691,3246.5,3245.4,0.9465964]
[1767752137053,3.08026691,3246.5,3245.6,1.01455112]
[1767752137758,3.08026691,3246.5,3245.6,0.9465964]
[1767752137944,6.16053382,3246.5,3245.6,0.9465964]
[1767752138147,7.1580031,3246.5,3245.5,0.71112644]
[1767752138343,7.1580031,3246.5,3245.4,0.807]
[1767752138851,7.1580031,3246.5,3245.4,3.88827104]
[1767752139632,7.1580031,3246.5,3245.6,0.002]
[1767752140041,0.001,3246.2,3245.6,0.002]
[1767752144772,0.99746928,3247.1,3246.0,0.9465964]
[1767752144943,4.07716807,3247.1,3246.0,0.9465964]
[1767752145143,0.807,3247.4,3246.2,0.9465964]
[1767752145463,3.07948489,3247.3,3246.2,0.9465964]
[1767752145830,0.99746928,3247.2,3245.9,0.9465964]
[1767752146063,0.99746928,3247.0,3246.0,0.807]
[1767752146708,4.07733007,3246.9,3245.9,0.9465964]
[1767752146870,0.99746928,3246.8,3245.6,0.002]
[1767752148960,0.99746928,3246.6,3245.6,0.002]
[1767752149264,0.99746928,3246.5,3245.6,0.31032422]
[1767752151489,3.08033514,3246.4,3245.6,0.31032422]
[1767752151801,0.99746928,3246.3,3245.6,0.31032422]
[1767752152285,0.001,3246.2,3245.6,0.31032422]
[1767752152457,0.001,3246.2,3245.6,0.002]
[1767752153585,0.001,3246.2,3245.6,0.03281094]
[1767752154361,0.001,3246.2,3245.6,0.002]
[1767752155858,3.88688981,3246.9,3246.0,0.9465964]
[1767752155859,3.0799472,3246.9,3246.0,0.9465964]
[1767752156057,4.07688623,3247.4,3246.0,0.9465964]
[1767752156058,6.15896282,3247.3,3246.1,1.01455112]
[1767752156290,6.97730603,3247.3,3246.2,1.12875151]
[1767752157175,7.97477531,3247.3,3246.2,1.12875151]
[1767752158988,11.05425672,3247.3,3246.2,1.12875151]
[1767752159485,0.99952775,3247.2,3246.2,1.12875151]
[1767752159663,0.99952775,3247.2,3246.2,0.18215511]
[1767752159862,0.99952775,3247.0,3246.0,1.7810521]
[1767752160063,6.15972158,3246.9,3246.1,0.9740521]
[1767752160684,7.15924933,3246.9,3245.6,0.06995472]
[1767752160885,7.15924933,3246.9,3245.6,0.002]
[1767752160886,0.99952775,3246.8,3245.6,0.002]
[1767752161092,10.04658237,3246.9,3245.7,3.08099002]
[1767752161093,0.99952775,3246.6,3245.7,3.08099002]
[1767752161796,0.99952775,3246.6,3245.6,0.40772557]
[1767752161981,0.99952775,3246.6,3245.6,0.002]
[1767752162380,3.08024025,3246.5,3245.6,0.002]
[1767752162894,4.07975723,3246.6,3245.6,0.9459464]
[1767752162895,3.08019241,3246.6,3245.6,0.9459464]
[1767752163201,0.807,3246.9,3245.9,0.9439464]
[1767752163202,3.07997216,3246.8,3245.9,0.9439464]
[1767752163406,3.07997216,3246.8,3246.0,0.97475354]
[1767752163607,3.88691079,3246.9,3246.0,0.97475354]
[1767752163893,3.07948141,3247.3,3246.2,0.9439464]
[1767752164101,4.04556885,3247.3,3246.2,0.97475164]
[1767752164304,4.04556885,3247.3,3246.2,0.9439464]
[1767752164305,0.001,3246.3,3246.2,0.9439464]
[1767752164470,0.96608744,3247.2,3246.1,3.08057092]
[1767752164785,0.96608744,3247.2,3246.0,0.18497083]
[1767752164786,0.96608744,3247.2,3246.2,3.08050611]
[1767752164991,0.96608744,3247.2,3246.3,0.30805061]
[1767752167083,3.07967109,3247.1,3246.3,0.30805061]
[1767752167676,6.15934218,3247.1,3246.3,0.30805061]
[1767752168880,3.07967109,3247.1,3246.3,0.30805061]
[1767752169091,7.12542962,3247.1,3246.1,4.02449702]
[1767752170199,4.04575853,3247.1,3246.1,4.02449702]
[1767752172207,0.96608744,3247.0,3246.0,0.18497083]
[1767752172413,0.96608744,3246.8,3245.6,0.002]
[1767752172705,0.807,3246.9,3245.6,0.002]
[1767752172706,0.96608744,3246.6,3245.6,0.002]
[1767752173607,0.96608744,3246.4,3245.6,0.002]
[1767752174316,3.08024025,3246.5,3245.6,0.002]
[1767752174483,6.1604805,3246.5,3245.6,0.002]
[1767752176737,0.96608744,3246.5,3245.6,0.002]
[1767752176911,1.67872526,3246.4,3245.9,0.002]
[1767752177507,0.96608744,3246.3,3245.9,0.002]
[1767752179009,0.96608744,3246.1,3245.9,0.002]
[1767752180682,0.96608744,3246.1,3245.5,1e-08]
[1767752180909,0.96608744,3246.1,3245.0,0.002]
[1767752180910,0.96608744,3245.9,3245.0,0.002]
[1767752181079,0.96608744,3245.7,3245.0,0.002]
[1767752183797,0.71275169,3245.8,3245.0,0.002]
[1767752185815,3.79372607,3245.8,3245.0,0.002]
[1767752186109,0.71275169,3245.8,3245.0,0.002]
[1767752186898,3.79366834,3245.8,3245.0,0.002]
[1767752188817,0.71275169,3245.8,3245.0,0.002]
[1767752189024,3.08084596,3245.9,3245.3,0.002]
[1767752189217,4.0469334,3245.9,3245.3,0.002]
[1767752189423,0.001,3245.8,3245.3,0.002]
[1767752192623,0.91557953,3245.8,3245.3,0.002]
[1767752193931,0.001,3245.8,3245.3,0.002]
[1767752194102,0.001,3245.8,3245.3,0.40900354]
[1767752194604,0.91457953,3245.7,3245.3,0.40900354]
[1767752194810,0.001,3245.8,3245.4,0.95565848]
[1767752200033,0.001,3245.8,3245.3,0.002]
[1767752200626,0.001,3245.8,3245.4,3.081272]
[1767752200828,0.91557953,3245.8,3245.5,0.3083272]
[1767752201033,0.91457953,3246.5,3245.6,0.95565848]
[1767752201234,0.91457953,3246.4,3245.6,0.95565848]
[1767752201432,0.91457953,3246.6,3245.8,0.95565848]
[1767752201638,0.91457953,3246.6,3245.7,0.06795472]
[1767752201639,0.91557953,3246.9,3246.1,0.06795472]
[1767752201854,0.001,3246.9,3246.5,0.95565848]
[1767752202149,3.32836946,3247.5,3246.7,0.95565848]
[1767752202150,0.24906591,3247.5,3246.7,0.95565848]
[1767752202806,3.32838716,3247.5,3246.7,0.95565848]
[1767752203337,6.40770841,3247.5,3246.7,0.95565848]
[1767752203544,0.91457953,3247.4,3246.2,0.807]
[1767752203726,1.95474045,3247.3,3246.3,0.95565848]
[1767752204036,8.11381097,3247.3,3246.4,0.95565848]
[1767752204241,5.03427571,3247.3,3246.4,0.95565848]
[1767752204424,3.99411479,3247.3,3246.4,0.95565848]
[1767752204612,7.07365005,3247.3,3246.4,0.95565848]
[1767752204817,0.91457953,3247.2,3246.1,0.807]
[1767752205014,6.15907052,3247.3,3246.2,0.95565848]
[1767752205015,7.07365005,3247.3,3246.2,0.95565848]
[1767752205229,0.91457953,3247.2,3246.2,1.76265848]
[1767752205424,0.91457953,3247.2,3246.3,1.13192433]
[1767752205930,0.91457953,3247.0,3246.3,0.17626585]
[1767752206539,0.91457953,3247.0,3246.0,4.03631689]
[1767752206792,0.91457953,3247.0,3246.1,3.08061376]
[1767752207221,0.91457953,3247.3,3246.3,0.95565848]
[1767752207420,0.91457953,3247.3,3246.0,0.09876186]
[1767752207421,0.91457953,3247.3,3246.2,3.08046839]
[1767752207620,0.91457953,3247.2,3246.2,3.70646032]
[1767752207817,3.07967109,3247.1,3246.2,3.70646032]
[1767752208009,3.07967109,3247.1,3246.3,0.95565848]
[1767752210253,3.07958411,3247.2,3246.3,0.95565848]
[1767752210550,6.15916822,3247.2,3246.3,0.95565848]
[1767752210728,7.02046718,3247.2,3246.3,0.95565848]
[1767752211339,3.94088307,3247.2,3246.3,0.95565848]
[1767752211645,3.94088307,3247.2,3246.3,4.03608545]
[1767752211849,3.94088307,3247.2,3246.3,0.95565848]
[1767752212553,3.94088307,3247.2,3245.7,3.08096878]
[1767752212554,0.91557953,3246.9,3245.8,0.95565848]
[1767752212761,0.91557953,3246.9,3245.8,4.84352592]
[1767752212932,0.91557953,3246.9,3245.9,4.03645115]
[1767752213121,0.91557953,3246.9,3245.9,0.95565848]
[1767752213322,0.91557953,3246.9,3246.0,0.95565848]
[1767752213552,0.91557953,3246.9,3245.8,0.48435259]
[1767752213862,0.91457953,3246.8,3245.5,3.88813828]
[1767752214159,0.91457953,3246.6,3245.5,5.63650768]
[1767752214632,3.08024025,3246.5,3245.6,4.0367272]
[1767752214819,3.08024025,3246.5,3245.7,0.95565848]
[1767752216131,3.08014803,3246.6,3245.7,0.95565848]
[1767752216457,3.08014803,3246.6,3245.8,0.95565848]
[1767752216757,3.71339664,3246.6,3245.8,0.95565848]
[1767752220362,3.71339664,3246.6,3245.8,4.03656049]
[1767752220832,3.71339664,3246.6,3245.8,0.95565848]
[1767752221237,3.08014803,3246.6,3245.8,0.95565848]
[1767752221937,6.16029606,3246.6,3245.8,0.95565848]
[1767752222138,6.16029606,3246.6,3245.5,0.93962698]
[1767752222139,0.9630904,3246.5,3245.5,0.93962698]
[1767752222840,4.04342554,3246.4,3245.5,4.02080659]
[1767752223037,4.04342554,3246.4,3245.6,0.93962698]
[1767752223365,0.9630904,3246.4,3245.7,0.97043697]
[1767752223567,3.08024428,3246.5,3245.7,0.93962698]
[1767752224391,0.9630904,3246.6,3246.1,0.002]
[1767752224392,4.04332558,3246.6,3246.1,0.002]
[1767752224657,0.001,3246.9,3246.1,0.94162698]
[1767752224866,0.001,3246.9,3246.5,0.93962698]
[1767752225030,0.001,3246.9,3246.6,0.93962698]
[1767752225231,0.24906591,3247.5,3246.6,0.93962698]
[1767752225431,3.32837621,3247.5,3246.6,0.93962698]
[1767752226074,6.40768651,3247.5,3246.6,0.93962698]
[1767752226254,7.37077691,3247.5,3246.6,0.93962698]
[1767752226462,4.29146661,3247.5,3246.6,1.1544893]
[1767752228087,4.29146661,3247.5,3246.6,4.23462731]
[1767752228445,4.29146661,3247.5,3246.6,1.1544893]
[1767752229453,4.29146661,3247.5,3246.6,4.23458551]
[1767752229659,4.29146661,3247.5,3246.7,0.99285485]
[1767752229858,4.29146661,3247.5,3246.8,0.42878134]
[1767752230174,4.29146661,3247.5,3246.7,0.99285485]
[1767752230346,6.40768651,3247.5,3246.7,0.99285485]
[1767752230548,6.40768651,3247.5,3246.6,0.21486232]
[1767752230549,7.39148417,3247.5,3246.6,0.21486232]
[1767752230776,0.98379766,3247.4,3246.6,0.21486232]
[1767752231790,0.98379766,3247.2,3246.6,0.21486232]
[1767752232480,0.98379766,3247.2,3246.1,0.99485485]
[1767752233873,0.98379766,3247.0,3246.1,4.07544871]
[1767752234088,0.98379766,3247.0,3246.1,0.99485485]
[1767752236593,4.06337391,3247.2,3246.4,0.002]
[1767752237118,0.98379766,3247.1,3246.4,0.002]
[1767752237407,1.69819268,3247.0,3246.4,0.002]
[1767752240094,0.71439502,3247.0,3246.4,0.99485485]
[1767752240396,3.07967109,3247.1,3246.4,0.99485485]
[1767752241293,6.15934218,3247.1,3246.4,0.99485485]
[1767752241800,7.14313984,3247.1,3246.4,0.99485485]
[1767752242294,0.98379766,3246.9,3246.4,0.002]
[1767752244369,0.98379766,3246.9,3246.4,0.03280335]
[1767752244566,0.98379766,3246.9,3246.4,0.002]
[1767752244884,3.07968339,3247.1,3246.4,0.99485485]
[1767752245080,0.98479766,3247.2,3246.5,0.99285485]
[1767752245318,0.001,3247.2,3246.6,1.0236563]
[1767752245479,0.001,3247.2,3246.4,4.48576471]
[1767752245480,0.98479766,3247.2,3246.4,4.48576471]
[1767752246387,3.0805918,3247.2,3246.5,0.99285485]
[1767752246607,0.001,3247.2,3246.5,0.99285485]
[1767752247511,0.001,3247.2,3246.6,1.44142937]
[1767752247671,0.001,3247.2,3246.7,0.99085485]
[1767752249318,0.98479766,3247.2,3246.4,4.48573548]
[1767752249521,0.98479766,3247.2,3246.7,0.002]
[1767752250195,0.98479766,3247.2,3246.1,0.002]
[1767752250718,0.98379766,3247.0,3246.1,1.02566104]
[1767752250894,1.69821164,3247.0,3246.1,1.02566104]
[1767752252122,1.69821164,3247.0,3246.1,0.99485485]
[1767752252488,3.07986079,3246.9,3246.1,0.99485485]
[1767752252692,4.77800374,3247.0,3246.2,1.03014171]
[1767752253003,3.07968592,3247.1,3246.2,0.99933647]
[1767752254217,4.06318655,3247.2,3246.2,0.99933647]
[1767752254416,0.001,3247.2,3246.2,1.09809643]
[1767752254608,0.001,3247.2,3246.4,0.99933647]
[1767752254809,0.001,3247.2,3246.6,0.99933647]
[1767752254994,0.001,3247.2,3246.7,1.03013697]
[1767752255197,0.001,3247.2,3246.1,1.00133647]
[1767752255198,0.98357303,3247.2,3246.1,1.00133647]
[1767752255504,0.98257303,3247.1,3246.1,0.002]
[1767752256693,0.98257303,3246.9,3246.1,0.002]
[1767752257018,0.98257303,3246.7,3246.1,0.002]
[1767752259409,4.06271841,3246.6,3246.1,0.002]
[1767752261520,4.06271841,3246.6,3246.4,0.002]
[1767752261732,4.06271841,3246.6,3246.1,0.002]
[1767752264710,0.98257303,3246.5,3246.1,0.002]
[1767752264905,0.98257303,3246.3,3245.8,0.002]
[1767752265614,0.71428638,3246.4,3245.8,0.002]
[1767752266124,0.98257303,3246.2,3245.3,1.00133647]
[1767752266425,0.98257303,3246.1,3245.0,0.002]
[1767752268729,0.98257303,3245.9,3245.0,0.002]
[1767752269024,0.98257303,3245.7,3245.0,0.002]
[1767752269600,7.14400247,3246.0,3245.0,1.00133647]
[1767752269796,0.98257303,3245.9,3245.0,1.00133647]
[1767752271308,0.98257303,3245.8,3245.0,3.08365639]
[1767752271513,0.98257303,3245.8,3245.1,0.33918133]
[1767752271814,3.08040154,3246.4,3245.1,0.33918133]
[1767752271815,4.87000305,3246.3,3245.2,0.99933647]
[1767752272012,4.87000305,3246.3,3245.4,0.99933647]
[1767752272208,4.87000305,3246.3,3245.5,0.03081189]
[1767752272409,4.06300305,3246.3,3245.5,1.03014836]
[1767752272644,0.98257303,3246.9,3245.5,0.99933647]
[1767752272824,3.0800563,3246.7,3245.7,0.99933647]
[1767752273022,3.08099825,3246.8,3245.7,0.99933647]
[1767752273223,3.08099825,3246.8,3245.9,0.99933647]
[1767752273423,3.08099825,3246.8,3246.0,1.41044148]
[1767752273816,6.1609965,3246.8,3246.0,1.41044148]
[1767752274442,6.1609965,3246.8,3246.0,0.99933647]
[1767752274838,3.08099825,3246.8,3246.0,0.99933647]
[1767752275433,0.001,3246.5,3246.0,0.99933647]
[1767752277319,0.001,3246.5,3246.1,0.99933647]
[1767752279543,0.001,3246.5,3245.5,0.06795472]
[1767752279544,0.91792583,3246.4,3245.5,3.08114034]
[1767752279720,0.91792583,3246.4,3245.6,3.08108382]
[1767752279924,0.91792583,3246.4,3245.5,0.61624966]
[1767752280229,0.91792583,3246.4,3245.3,3.88833343]
[1767752280937,0.91792583,3246.4,3245.4,3.08127055]
[1767752281335,0.91792583,3246.4,3245.2,0.92968294]
[1767752281639,9.24194824,3246.5,3245.0,0.002]
[1767752281640,0.91623774,3246.2,3245.0,0.002]
[1767752281956,0.91623774,3246.0,3245.0,0.002]
[1767752282158,0.91623774,3246.0,3245.0,0.31057056]
[1767752282342,0.91623774,3246.0,3245.0,0.002]
[1767752283536,0.91623774,3245.8,3245.0,0.002]
[1767752285330,0.80469611,3245.8,3245.0,0.03281664]
[1767752285546,0.80469611,3245.8,3245.1,3.08156913]
[1767752285836,0.91623774,3245.7,3245.2,0.30835691]
[1767752286392,0.91623774,3245.7,3245.0,3.08364169]
[1767752286730,0.91623774,3245.7,3245.0,6.19612242]
[1767752287332,0.001,3245.6,3245.0,6.19612242]
[1767752287743,0.001,3245.6,3245.0,3.99833848]
[1767752288057,0.001,3245.6,3245.1,0.91469679]
[1767752288259,0.001,3245.6,3245.2,0.39983385]
[1767752289232,0.001,3245.6,3245.2,1.31453064]
[1767752290155,0.001,3245.6,3245.2,0.39983385]
[1767752290333,0.001,3245.6,3245.0,0.002]
[1767752290742,0.91723774,3245.6,3245.0,0.002]
[1767752292659,3.9983346,3245.6,3245.0,0.002]
[1767752293843,0.91623774,3245.5,3245.0,0.002]
[1767752298486,3.9974495,3245.5,3245.0,0.002]
[1767752298765,4.39729445,3245.5,3245.0,0.002]
[1767752299070,4.39729445,3245.5,3245.3,0.002]
[1767752299252,4.39729445,3245.5,3245.0,0.002]
[1767752299441,1.31608269,3245.5,3245.0,0.002]
[1767752300289,0.91623774,3245.4,3244.8,0.002]
[1767752300445,0.91623774,3245.2,3244.8,0.002]
[1767752301787,3.08156913,3245.1,3244.7,0.002]
[1767752302160,3.99775487,3245.2,3244.7,0.002]
[1767752303003,0.91623774,3245.1,3244.7,0.002]
[1767752303159,1.62415167,3245.1,3244.7,0.002]
[1767752305862,4.70575574,3245.1,3244.7,0.002]
[1767752306062,0.91623774,3245.1,3244.7,0.002]
[1767752307295,0.91623774,3245.0,3244.4,0.002]
[1767752307475,0.91623774,3244.8,3244.3,0.002]
[1767752307787,0.70797559,3244.7,3244.3,0.002]
[1767752307966,3.9979968,3244.9,3244.3,0.002]
[1767752309274,0.91623774,3244.8,3244.3,0.002]
[1767752309481,3.08194902,3244.7,3244.3,0.002]
[1767752309789,3.99814125,3244.8,3244.3,0.002]
[1767752310173,0.91623774,3244.8,3244.3,0.002]
[1767752310574,3.99812304,3244.8,3244.3,0.002]
[1767752310774,3.99812304,3244.8,3244.6,0.002]
[1767752311289,4.39803534,3244.8,3244.6,0.002]
[1767752313991,1.31615004,3244.8,3244.6,0.002]
[1767752314195,0.91623774,3244.8,3244.6,0.002]
[1767752314408,3.08282183,3244.9,3244.6,0.002]
[1767752315287,3.99069033,3244.9,3244.6,0.002]
[1767752315906,0.9078685,3244.8,3244.0,0.002]
[1767752316118,0.9078685,3244.7,3244.0,0.002]
[1767752316406,0.9078685,3244.5,3244.0,0.002]
[1767752317200,3.082234,3244.4,3244.0,0.002]
[1767752317998,3.99005004,3244.5,3244.0,0.002]
[1767752319599,0.9078685,3244.5,3244.0,0.002]
[1767752320308,0.9078685,3244.4,3244.0,0.002]
[1767752323215,0.9078685,3244.3,3244.0,0.00099902]
[1767752325995,3.99019883,3244.3,3244.0,0.00099902]
[1767752326399,0.9078685,3244.2,3244.0,0.00099902]
[1767752327020,0.9078685,3244.1,3243.7,0.002]
[1767752330201,0.9078685,3244.0,3243.1,0.002]
[1767752330519,0.9078685,3243.9,3243.1,0.002]
[1767752331910,0.9078685,3243.7,3243.1,0.002]
[1767752335231,0.9078685,3243.6,3243.1,0.002]
[1767752336104,0.9078685,3243.6,3243.4,0.002]
[1767752336404,0.9088685,3243.6,3243.4,0.002]
[1767752337115,0.001,3243.6,3243.4,0.002]
[1767752340936,0.30938309,3243.6,3243.1,0.002]
[1767752341111,1.21640442,3243.6,3243.1,0.002]
[1767752341312,4.29946875,3243.6,3243.1,0.002]
[1767752343836,0.30938309,3243.6,3243.1,0.002]
[1767752344139,3.08399712,3243.6,3243.1,0.002]
[1767752346209,0.001,3243.6,3243.1,0.002]
[1767752348240,0.001,3243.6,3242.7,0.002]
[1767752348241,0.90373626,3243.3,3242.7,0.002]
[1767752348438,3.9871107,3243.2,3242.7,0.002]
[1767752349345,3.98695674,3243.4,3242.7,0.002]
[1767752349544,4.43324465,3243.4,3242.7,0.002]
[1767752350446,4.43324465,3243.4,3242.7,0.90399433]
[1767752351946,0.90373626,3243.3,3242.7,0.90399433]
[1767752352839,6.61274094,3243.4,3242.7,0.002]
[1767752352840,0.90373626,3243.1,3242.7,0.002]
[1767752353018,1.61078477,3243.1,3242.7,0.002]
[1767752353417,0.70704851,3243.1,3242.7,0.002]
[1767752353642,3.98704757,3243.3,3242.7,0.002]
[1767752360240,3.98704757,3243.3,3243.0,0.002]